fUSD/lending_fUSD_20251222
["ID","MTS","AMOUNT","RATE_DAILY","PERIOD"]
[399454881,1766368241865,-27462.05457815,0.00013765,2]
[399454882,1766368241875,-31398.49970292,0.00013765,2]
[399454883,1766368241884,-2304.72,0.00013917,2]
[399454884,1766368241895,-635.18407427,0.00014091,2]
[399454885,1766368241904,-1000.0,0.00014191,2]
[399454886,1766368241913,-1000.0,0.00014191,2]
[399454887,1766368241922,-1000.0,0.00014191,2]
[399454888,1766368241931,-562.43328901,0.00014191,2]
[399454889,1766368241940,-1000.0,0.00014191,2]
[399454890,1766368241949,-1000.0,0.00014191,2]
[399454891,1766368241958,-1000.0,0.00014191,2]
[399454892,1766368241967,-1000.0,0.00014191,2]
[399454893,1766368241976,-1000.0,0.00014191,2]
[399454894,1766368241985,-535.43855747,0.00014191,2]
[399454895,1766368241995,-1000.0,0.00014191,2]
[399454896,1766368242004,-537.36765375,0.00014191,2]
[399454897,1766368242013,-1000.0,0.00014191,2]
[399454898,1766368242023,-1000.0,0.00014191,2]
[399454899,1766368242032,-1000.0,0.00014191,2]
[399454900,1766368242043,-1000.0,0.00014191,2]
[399454901,1766368242052,-1000.0,0.00014191,2]
[399454902,1766368242062,-1000.0,0.00014191,2]
[399454903,1766368242071,-1000.0,0.00014191,2]
[399454904,1766368242080,-1000.0,0.00014191,2]
[399454905,1766368242089,-235.68882783,0.00014191,2]
[399454906,1766368242102,-1000.0,0.00014191,2]
[399454907,1766368242111,-1000.0,0.00014191,2]
[399454908,1766368242121,-1000.81193052,0.00014191,2]
[399454909,1766368242132,-1000.0,0.00014191,2]
[399454910,1766368242141,-1000.0,0.00014191,2]
[399454911,1766368242150,-453.73344194,0.00014191,2]
[399454912,1766368242160,-1000.0,0.00014191,2]
[399454913,1766368242170,-1000.0,0.00014191,2]
[399454914,1766368242179,-1000.0,0.00014191,2]
[399454915,1766368242189,-1000.0,0.00014191,2]
[399454916,1766368242198,-1000.0,0.00014191,2]
[399454917,1766368242208,-1000.0,0.00014191,2]
[399454918,1766368242217,-2304.72,0.00014191,2]
[399454919,1766368242227,-412.96,0.0001422,2]
[399454920,1766368242237,-151.0,0.00014223,2]
[399454921,1766368242247,-4609.0,0.00014269,2]
[399454922,1766368242256,-19978.61,0.00014388,2]
[399454923,1766368242266,-1252.0,0.00014413,2]
[399454924,1766368242275,-2304.72,0.00014465,2]
[399454925,1766368242284,-3301.98750385,0.0001451,2]
[399454926,1766368242294,-51222.87,0.00014518,2]
[399454927,1766368242303,-27462.05457815,0.00014549,2]
[399454928,1766368242312,-31398.49970292,0.00014549,2]
[399454929,1766368242322,-999.0,0.00014568,3]
[399454930,1766368242333,-500.0,0.00014663,2]
[399454931,1766368242342,-500.0,0.00014738,2]
[399454932,1766368242351,-500.0,0.00014738,2]
[399454933,1766368242360,-500.0,0.00014738,2]
[399454934,1766368242370,-714.84234676,0.00014739,2]
[399454935,1766368242380,-1500.0,0.00014739,2]
[399454936,1766368242389,-1152.24771279,0.00014739,2]
[399454937,1766368242399,-1500.0,0.00014739,2]
[399454938,1766368242409,-1500.0,0.00014739,2]
[399454939,1766368242418,-1500.0,0.00014739,2]
[399454940,1766368242428,-1500.0,0.00014739,2]
[399454941,1766368242438,-1001.38196086,0.00014739,2]
[399454942,1766368242447,-1500.0,0.00014739,2]
[399454943,1766368242456,-1500.0,0.00014739,2]
[399454944,1766368242466,-304.17773207,0.00014739,2]
[399454945,1766368242475,-1500.0,0.00014739,2]
[399454946,1766368242487,-980.93651792,0.00014739,2]
[399454947,1766368242496,-437.07935653,0.00014739,2]
[399454948,1766368242506,-597.93973627,0.00014739,2]
[399454949,1766368242515,-1500.0,0.00014739,2]
[399454950,1766368242524,-1500.0,0.00014739,2]
[399454951,1766368242533,-1500.0,0.00014739,2]
[399454952,1766368242542,-366.5623891,0.00014739,2]
[399454953,1766368242551,-1500.0,0.00014739,2]
[399454954,1766368242560,-1500.0,0.00014739,2]
[399454955,1766368242570,-644.6648404,0.00014739,2]
[399454956,1766368242579,-1500.0,0.00014739,2]
[399454957,1766368242588,-1500.0,0.00014739,2]
[399454958,1766368242597,-1500.0,0.00014739,2]
[399454959,1766368242608,-1500.0,0.00014739,2]
[399454960,1766368242618,-1500.0,0.00014739,2]
[399454961,1766368242627,-2304.72,0.00014739,2]
[399454962,1766368242637,-412.96,0.00014813,2]
[399454963,1766368242647,-226.5471914,0.000149,2]
[399454965,1766368242656,-2304.72,0.00015013,2]
[399454966,1766368242666,-1159.1358272,0.00015287,2]
[399454967,1766368242675,-667.2591655,0.00015287,2]
[399454968,1766368242685,-2000.0,0.00015287,2]
[399454969,1766368242695,-1437.14852253,0.00015287,2]
[399454970,1766368242703,-2000.0,0.00015287,2]
[399454971,1766368242713,-2002.21103807,0.00015287,2]
[399454972,1766368242722,-2000.0,0.00015287,2]
[399454973,1766368242731,-1572.96293358,0.00015287,2]
[399454974,1766368242740,-2000.0,0.00015287,2]
[399454975,1766368242750,-1890.7850892,0.00015287,2]
[399454976,1766368242759,-959.78950383,0.00015287,2]
[399454977,1766368242769,-1505.45508162,0.00015287,2]
[399454978,1766368242778,-1130.28190868,0.00015287,2]
[399454979,1766368242787,-2000.0,0.00015287,2]
[399454980,1766368242796,-2000.0,0.00015287,2]
[399454981,1766368242805,-2000.0,0.00015287,2]
[399454983,1766368242817,-2000.0,0.00015287,2]
[399454984,1766368242829,-504.58016272,0.00015287,2]
[399454986,1766368242839,-2304.72,0.00015287,2]
[399454987,1766368242849,-155.74604872,0.00015288,2]
[399454988,1766368242858,-160.68439963,0.00015288,2]
[399454989,1766368242868,-158.67617392,0.00015288,2]
[399454990,1766368242877,-157.04290017,0.00015288,2]
[399454991,1766368242887,-157.86754475,0.00015288,2]
[399454992,1766368242899,-152.87156213,0.00015288,2]
[399454993,1766368242908,-27462.05457815,0.00015333,2]
[399454994,1766368242918,-31398.49970292,0.00015333,2]
[399454995,1766368242927,-150.92912493,0.00015393,2]
[399454996,1766368242936,-152.83861574,0.00015393,2]
[399454997,1766368242945,-151.41928743,0.00015393,2]
[399454998,1766368242954,-151.1761116,0.00015393,2]
[399454999,1766368242964,-150.52319248,0.00015393,2]
[399455000,1766368242973,-150.83427243,0.00015393,2]
[399455001,1766368242983,-152.62996909,0.00015393,2]
[399455002,1766368242992,-175.15780036,0.00015393,2]
[399455003,1766368243001,-412.96,0.00015406,2]
[399455004,1766368243011,-500.0,0.00015493,2]
[399455005,1766368243020,-635.18407425,0.00015496,2]
[399455006,1766368243031,-2304.72,0.00015561,2]
[399455007,1766368243040,-6453.0,0.00015696,2]
[399455008,1766368243050,-2500.0,0.00015835,2]
[399455009,1766368243060,-2500.0,0.00015835,2]
[399455010,1766368243069,-2500.0,0.00015835,2]
[399455011,1766368243079,-2500.0,0.00015835,2]
[399455012,1766368243088,-2500.0,0.00015835,2]
[399455013,1766368243098,-2500.0,0.00015835,2]
[399455014,1766368243107,-2500.0,0.00015835,2]
[399455015,1766368243116,-2500.0,0.00015835,2]
[399455016,1766368243126,-2304.72,0.00015835,2]
[399455017,1766368243135,-2129.0,0.0001586,2]
[399455018,1766368243144,-412.96,0.00015998,2]
[399455019,1766368243153,-500.0,0.00015999,2]
[399455020,1766368243163,-180.87129964,0.00015999,2]
[399455021,1766368243173,-2304.72,0.00016108,2]
[399455022,1766368243182,-27462.05457815,0.00016116,2]
[399455023,1766368243192,-31398.49970292,0.00016116,2]
[399455024,1766368243201,-10000.0,0.00016373,2]
[399455025,1766368243211,-2304.72,0.00016382,2]
[399455026,1766368243220,-2007.00799583,0.00016383,2]
[399455027,1766368243230,-3000.0,0.00016383,2]
[399455028,1766368243239,-3000.0,0.00016383,2]
[399455029,1766368243249,-3006.61121475,0.00016383,2]
[399455030,1766368243258,-3000.0,0.00016383,2]
[399455031,1766368243268,-1126.98496752,0.00016383,2]
[399455032,1766368243277,-1090.93800386,0.00016383,2]
[399455033,1766368243288,-3000.0,0.00016383,2]
[399455034,1766368243298,-3240.0,0.00016406,2]
[399455035,1766368243307,-863.45,0.00016437,2]
[399455036,1766368243317,-500.0,0.00016437,2]
[399455037,1766368243326,-500.0,0.00016437,2]
[399455038,1766368243335,-500.0,0.00016437,2]
[399455040,1766368243344,-500.0,0.00016437,2]
[399455042,1766368243354,-1552.60032165,0.00016438,2]
[399455044,1766368243363,-1552.60032165,0.00016438,2]
[399455046,1766368243372,-1552.60032165,0.00016438,2]
[399455048,1766368243382,-1552.60032165,0.00016438,2]
[399455051,1766368243392,-1552.60032165,0.00016438,2]
[399455053,1766368243402,-1552.60032165,0.00016438,2]
[399455055,1766368243411,-1552.60032165,0.00016438,2]
[399455057,1766368243421,-1552.60032165,0.00016438,2]
[399455059,1766368243430,-1552.60032165,0.00016438,2]
[399455061,1766368243440,-1552.60032165,0.00016438,2]
[399455063,1766368243449,-1552.60032165,0.00016438,2]
[399455065,1766368243459,-1552.60032165,0.00016438,2]
[399455067,1766368243468,-1552.60032165,0.00016438,2]
[399455069,1766368243478,-1552.60032165,0.00016438,2]
[399455071,1766368243488,-1552.60032165,0.00016438,2]
[399455073,1766368243497,-1552.60032165,0.00016438,2]
[399455075,1766368243506,-1552.60032165,0.00016438,2]
[399455077,1766368243515,-1552.60032165,0.00016438,2]
[399455079,1766368243524,-1552.60032165,0.00016438,2]
[399455082,1766368243533,-1552.60032165,0.00016438,2]
[399455085,1766368243541,-1552.60032165,0.00016438,2]
[399455087,1766368243550,-1552.60032165,0.00016438,2]
[399455089,1766368243559,-1552.60032165,0.00016438,2]
[399455091,1766368243568,-1552.60032165,0.00016438,2]
[399455093,1766368243577,-1552.60032165,0.00016438,2]
[399455095,1766368243585,-1552.60032165,0.00016438,2]
[399455097,1766368243594,-1552.60032165,0.00016438,2]
[399455099,1766368243603,-1552.60032165,0.00016438,2]
[399455101,1766368243613,-1552.60032165,0.00016438,2]
[399455103,1766368243622,-1552.60032165,0.00016438,2]
[399455105,1766368243631,-1552.60032165,0.00016438,2]
[399455107,1766368243641,-1552.60032165,0.00016438,2]
[399455109,1766368243650,-1552.60032165,0.00016438,2]
[399455111,1766368243659,-1552.60032165,0.00016438,2]
[399455113,1766368243667,-1552.60032165,0.00016438,2]
[399455115,1766368243676,-1552.60032165,0.00016438,2]
[399455117,1766368243685,-1552.60032165,0.00016438,2]
[399455119,1766368243695,-1552.60032165,0.00016438,2]
[399455121,1766368243703,-1552.60032165,0.00016438,2]
[399455122,1766368243713,-1552.60032165,0.00016438,2]
[399455125,1766368243722,-1552.60032165,0.00016438,2]
[399455126,1766368243733,-1552.60032165,0.00016438,2]
[399455128,1766368243742,-1552.60032165,0.00016438,2]
[399455130,1766368243752,-1552.60032165,0.00016438,2]
[399455132,1766368243761,-1552.60032165,0.00016438,2]
[399455135,1766368243770,-1552.60032165,0.00016438,2]
[399455137,1766368243780,-800.66640866,0.00016438,2]
[399455139,1766368243790,-500.84493932,0.00016473,2]
[399455141,1766368243800,-500.63864721,0.00016473,2]
[399455143,1766368243812,-500.53011343,0.00016473,2]
[399455145,1766368243822,-500.0,0.00016473,2]
[399455147,1766368243832,-500.0,0.00016473,2]
[399455149,1766368243843,-500.89063362,0.00016473,2]
[399455151,1766368243854,-500.40105858,0.00016473,2]
[399455153,1766368243864,-500.23459526,0.00016473,2]
[399455155,1766368243873,-182.65808094,0.00016473,2]
[399455157,1766368243885,-500.0,0.00016473,2]
[399455159,1766368243896,-500.92519729,0.00016473,2]
[399455161,1766368243905,-570.44343091,0.00016473,2]
[399455163,1766368243915,-500.59656143,0.00016473,2]
[399455165,1766368243924,-162.4264826,0.00016473,2]
[399455167,1766368243934,-500.23422882,0.00016473,2]
[399455169,1766368243943,-500.71610448,0.00016473,2]
[399455171,1766368243952,-500.25404697,0.00016473,2]
[399455173,1766368243962,-519.00415051,0.00016473,2]
[399455175,1766368243971,-500.0,0.00016473,2]
[399455177,1766368243980,-500.5380025,0.00016473,2]
[399455179,1766368243990,-500.0,0.00016473,2]
[399455181,1766368243999,-500.28027426,0.00016473,2]
[399455182,1766368244009,-500.23816043,0.00016473,2]
[399455184,1766368244018,-500.31559723,0.00016473,2]
[399455187,1766368244028,-500.84177563,0.00016473,2]
[399455189,1766368244037,-160.23033873,0.00016473,2]
[399455191,1766368244046,-500.0,0.00016473,2]
[399455193,1766368244055,-500.76356067,0.00016473,2]
[399455195,1766368244064,-500.0,0.00016473,2]
[399455197,1766368244073,-500.26932841,0.00016473,2]
[399455199,1766368244082,-500.0,0.00016473,2]
[399455201,1766368244094,-556.12570782,0.00016473,2]
[399455203,1766368244104,-500.0,0.00016473,2]
[399455205,1766368244113,-500.89704022,0.00016473,2]
[399455207,1766368244122,-334.69874754,0.00016473,2]
[399455208,1766368244132,-150.2134934,0.00016473,2]
[399455211,1766368244141,-500.85006285,0.00016473,2]
[399455213,1766368244151,-500.0,0.00016473,2]
[399455214,1766368244162,-160.2285992,0.00016473,2]
[399455216,1766368244172,-160.22953259,0.00016473,2]
[399455218,1766368244182,-160.22398459,0.00016473,2]
[399455220,1766368244191,-160.22953204,0.00016473,2]
[399455223,1766368244202,-500.93365607,0.00016473,2]
[399455225,1766368244211,-500.14110793,0.00016473,2]
[399455227,1766368244220,-639.90034145,0.00016473,2]
[399455229,1766368244231,-500.4866391,0.00016473,2]
[399455231,1766368244241,-500.0,0.00016473,2]
[399455233,1766368244251,-500.69670875,0.00016473,2]
[399455235,1766368244260,-500.0,0.00016473,2]
[399455237,1766368244270,-500.0,0.00016473,2]
[399455238,1766368244279,-500.5955787,0.00016473,2]
[399455241,1766368244289,-500.0,0.00016473,2]
[399455243,1766368244298,-500.0,0.00016473,2]
[399455245,1766368244308,-207.53128657,0.00016473,2]
[399455247,1766368244317,-500.364387,0.00016473,2]
[399455249,1766368244327,-500.88851044,0.00016473,2]
[399455251,1766368244336,-156.58285256,0.00016473,2]
[399455253,1766368244345,-500.0,0.00016473,2]
[399455255,1766368244355,-500.23431497,0.00016473,2]
[399455256,1766368244364,-500.94017287,0.00016473,2]
[399455257,1766368244373,-160.23136935,0.00016473,2]
[399455258,1766368244383,-500.0,0.00016473,2]
[399455259,1766368244392,-500.0,0.00016473,2]
[399455261,1766368244402,-500.71273679,0.00016473,2]
[399455262,1766368244411,-509.29558158,0.00016473,2]
[399455263,1766368244420,-566.05199029,0.00016473,2]
[399455264,1766368244429,-500.0,0.00016473,2]
[399455265,1766368244438,-500.47037435,0.00016473,2]
[399455266,1766368244447,-506.35717119,0.00016473,2]
[399455267,1766368244456,-500.0,0.00016473,2]
[399455268,1766368244465,-500.0,0.00016473,2]
[399455269,1766368244474,-180.96115395,0.00016473,2]
[399455270,1766368244483,-530.18655741,0.00016473,2]
[399455271,1766368244492,-499.92308063,0.00016473,2]
[399455272,1766368244502,-500.0,0.00016473,2]
[399455273,1766368244511,-164.86405043,0.00016473,2]
[399455274,1766368244520,-500.19873097,0.00016473,2]
[399455275,1766368244529,-500.0,0.00016473,2]
[399455276,1766368244537,-500.28148254,0.00016473,2]
[399455277,1766368244546,-2304.72,0.00016656,2]
[399455278,1766368244556,-201.47691223,0.00016842,2]
[399455279,1766368244565,-3729.21,0.000169,2]
[399455280,1766368244574,-243.55353699,0.000169,3]
[399455281,1766368244583,-27462.05457815,0.000169,2]
[399455282,1766368244592,-635.18407425,0.000169,2]
[399455283,1766368244601,-1518.13760257,0.000169,2]
[399455284,1766368244611,-169.11922478,0.000169,2]
[399455285,1766368244620,-771.66914966,0.000169,2]
[399455286,1766368244629,-256.92797377,0.000169,2]
[399455287,1766368244638,-31398.49970292,0.000169,2]
[399455288,1766368244647,-501.43777448,0.0001693,2]
[399455289,1766368244656,-500.0,0.0001693,2]
[399455290,1766368244665,-500.0,0.0001693,2]
[399455291,1766368244674,-2304.72,0.0001693,2]
[399455292,1766368244683,-353.92874992,0.00016931,2]
[399455293,1766368244692,-3500.0,0.00016931,2]
[399455294,1766368244701,-3507.1328153,0.00016931,2]
[399455295,1766368244710,-2457.72726214,0.00016931,2]
[399455296,1766368244719,-150.0,0.00016973,2]
[399455297,1766368244728,-150.11026087,0.00016973,2]
[399455298,1766368244738,-500.0,0.00016973,2]
[399455299,1766368244747,-605.42609762,0.00016973,2]
[399455300,1766368244756,-150.0,0.00016973,2]
[399455301,1766368244766,-151.33984604,0.00016983,2]
[399455302,1766368244775,-2235.14725565,0.0001699,2]
[399455303,1766368244784,-2235.14725565,0.0001699,2]
[399455304,1766368244793,-257.27852533,0.00016997,2]
[399455305,1766368244803,-151.0,0.00016997,2]
[399455306,1766368244812,-500.0,0.00016998,2]
[399455307,1766368244824,-500.0,0.00016998,2]
[399455308,1766368244833,-1164.48735709,0.00016999,5]
[399455309,1766368244843,-1164.4873571,0.00016999,5]
[399455310,1766368244852,-11898.1269709,0.00016999,2]
[399455311,1766368244862,-319147.2193562,0.00016999,2]
[399455312,1766368244872,-863.45,0.00016999,2]
[399455313,1766368244881,-863.45,0.00016999,2]
[399455314,1766368244892,-863.45,0.00016999,2]
[399455315,1766368244905,-863.45,0.00016999,2]
[399455316,1766368244914,-863.45,0.00016999,2]
[399455317,1766368244924,-863.45,0.00016999,2]
[399455318,1766368244933,-863.45,0.00016999,2]
[399455319,1766368244943,-863.45,0.00016999,2]
[399455320,1766368244952,-863.45,0.00016999,2]
[399455321,1766368244962,-863.45,0.00016999,2]
[399455322,1766368244971,-863.45,0.00016999,2]
[399455323,1766368244981,-863.45,0.00016999,2]
[399455324,1766368244990,-863.45,0.00016999,2]
[399455325,1766368244999,-863.45,0.00016999,2]
[399455326,1766368245009,-863.45,0.00016999,2]
[399455327,1766368245019,-863.45,0.00016999,2]
[399455328,1766368245028,-863.49591035,0.00016999,2]
[399455329,1766368245038,-6155.2528335,0.00016999,2]
[399455330,1766368245048,-651.158929,0.00016999,2]
[399455331,1766368245057,-300.0,0.00016999,2]
[399455332,1766368245067,-500.0,0.00016999,2]
[399455333,1766368245076,-507.17995557,0.00016999,2]
[399455334,1766368245086,-500.0,0.00016999,2]
[399455335,1766368245096,-516.06200881,0.00016999,2]
[399455336,1766368245105,-500.0,0.00016999,2]
[399455337,1766368245115,-500.0,0.00016999,2]
[399455338,1766368245124,-416.97007876,0.00016999,2]
[399455339,1766368245135,-300.0,0.00016999,2]
[399455340,1766368245145,-300.0,0.00016999,2]
[399455341,1766368245155,-300.0,0.00016999,2]
[399455342,1766368245165,-666.0,0.00016999,2]
[399455343,1766368245175,-300.0,0.00016999,2]
[399455344,1766368245184,-300.0,0.00016999,2]
[399455345,1766368245194,-666.0,0.00016999,2]
[399455346,1766368245203,-1370672.4375216,0.00017,2]
[399455350,1766368246117,-1552.60032165,0.00016438,2]
[399455351,1766368246127,-1552.60032165,0.00016438,2]
[399455352,1766368246136,-1552.60032165,0.00016438,2]
[399455353,1766368246146,-1552.60032165,0.00016438,2]
[399455354,1766368246155,-1552.60032165,0.00016438,2]
[399455355,1766368246165,-1552.60032165,0.00016438,2]
[399455356,1766368246174,-1552.60032165,0.00016438,2]
[399455357,1766368246184,-1552.60032165,0.00016438,2]
[399455358,1766368246193,-1552.60032165,0.00016438,2]
[399455359,1766368246203,-1552.60032165,0.00016438,2]
[399455360,1766368246212,-1552.60032165,0.00016438,2]
[399455361,1766368246222,-1552.60032165,0.00016438,2]
[399455362,1766368246231,-1552.60032165,0.00016438,2]
[399455363,1766368246241,-1552.60032165,0.00016438,2]
[399455364,1766368246251,-1552.60032165,0.00016438,2]
[399455365,1766368246260,-1552.60032165,0.00016438,2]
[399455366,1766368246270,-1552.60032165,0.00016438,2]
[399455368,1766368246279,-1552.60032165,0.00016438,2]
[399455370,1766368246288,-1552.60032165,0.00016438,2]
[399455372,1766368246298,-6469959.27222432,0.00017,2]
[399455374,1766368246307,-733430.92223516,0.00017,2]
[399455379,1766368246347,-44658.24161778,0.00017,2]
[399455394,1766368246482,-797.35589035,0.00017,2]
[399455425,1766368267584,547.079772,7.945e-05,2]
[399455426,1766368273653,261.99486,0.00034,120]
[399455427,1766368373252,1000.0,0.0003561,30]
[399455428,1766368374354,1000.0,0.0003561,30]
[399455429,1766368383468,1000.0,0.0003561,120]
[399455430,1766368395585,1000.0,0.0003561,120]
[399455431,1766368396356,1000.0,0.0003561,120]
[399455432,1766368397117,1000.0,0.0003561,120]
[399455433,1766368405901,1000.0,0.0003561,120]
[399455434,1766368406489,1000.0,0.0003561,120]
[399455435,1766368407177,1000.0,0.0003561,120]
[399455436,1766368407924,1000.0,0.0003561,120]
[399455437,1766368408625,1000.0,0.0003561,120]
[399455438,1766368416705,1653.27,0.0003561,120]
[399455459,1766368642611,1424.0,0.00034,30]
[399455460,1766368642760,1424.0,0.00034,30]
[399455461,1766368642924,1424.0,0.00034,30]
[399455462,1766368643125,1424.0,0.00034,30]
[399455463,1766368643297,1424.0,0.00034,30]
[399455464,1766368643465,1424.0,0.00034,30]
[399455465,1766368643622,1424.0,0.00034,30]
[399455466,1766368643796,1424.0,0.00034,30]
[399455467,1766368643959,1424.0,0.00034,30]
[399455468,1766368644140,1424.0,0.00034,30]
[399455469,1766368644308,1424.0,0.00034,30]
[399455470,1766368644463,1424.0,0.00034,30]
[399455471,1766368644667,1424.0,0.00034,30]
[399455472,1766368644832,1424.0,0.00034,30]
[399455473,1766368645005,1424.0,0.00034,30]
[399455474,1766368645181,1424.0,0.00034,30]
[399455475,1766368645876,1424.0,0.00034,30]
[399455476,1766368646414,1424.0,0.00034,30]
[399455477,1766368647663,1424.0,0.00034,30]
[399455478,1766368652575,1424.0,0.00034,30]
[399455479,1766368654824,1424.0,0.00034,30]
[399455480,1766368657394,1424.0,0.00034,30]
[399455481,1766368660267,1424.0,0.00034,30]
[399455482,1766368663445,1442.40804178,0.00034,30]
[399455483,1766368703151,500.0,0.00035342,30]
[399455484,1766368703327,500.0,0.00035342,30]
[399455485,1766368703666,451.10011399,0.00035342,30]
[399455486,1766368767678,1048.75,0.00035616,30]
[399455487,1766368778859,151.51923746,0.00035342,30]
[399455488,1766368827044,512.24,0.00035616,30]
[399455489,1766368885852,150.0,0.00035342,30]
[399455490,1766368886039,157.29024472,0.00035342,30]
[399455491,1766368892706,521.358,9.52e-05,2]
[399455492,1766368892745,160.3,9.52e-05,2]
[399455493,1766368892786,521.359,0.0003464,39]
[399455496,1766368985680,500.0,0.00035342,30]
[399455497,1766368985852,500.0,0.00035342,30]
[399455498,1766368986019,500.0,0.00035342,30]
[399455499,1766368986190,500.0,0.00035342,30]
[399455500,1766368986357,500.0,0.00035342,30]
[399455501,1766368986528,500.0,0.00035342,30]
[399455502,1766368986687,500.0,0.00035342,30]
[399455503,1766368986851,623.05494499,0.00035342,30]
[399455504,1766368987341,500.0,0.00035342,30]
[399455505,1766368987510,500.0,0.00035342,30]
[399455506,1766368987681,439.36136932,0.00035342,30]
[399455507,1766368996658,500.0,0.00035616,30]
[399455508,1766369243086,500.0,0.00035342,30]
[399455509,1766369243274,504.41502637,0.00035342,30]
[399455510,1766369243651,150.92912493,0.00035342,30]
[399455511,1766369244132,152.83861574,0.00035342,30]
[399455512,1766369244166,151.41928743,0.00035342,30]
[399455513,1766369244200,175.15780036,0.00035342,30]
[399455514,1766369244234,151.1761116,0.00035342,30]
[399455515,1766369244343,150.52319248,0.00035342,30]
[399455516,1766369244790,150.83427243,0.00035342,30]
[399455517,1766369251243,152.62996909,0.00035342,30]
[399455519,1766369341136,1000.0,0.00035615,30]
[399455520,1766369341384,1000.0,0.00035609,30]
[399455521,1766369341644,1000.0,0.00034639,30]
[399455523,1766369348855,8304.292228,9.514e-05,2]
[399455524,1766369348879,10000.01,9.514e-05,2]
[399455525,1766369348904,10000.01,9.514e-05,2]
[399455526,1766369348928,10000.01,9.514e-05,2]
[399455527,1766369348952,10000.01,9.514e-05,2]
[399455528,1766369348986,10000.01,9.514e-05,2]
[399455529,1766369349014,10000.01,9.514e-05,2]
[399455530,1766369349039,10000.01,9.514e-05,2]
[399455531,1766369349066,10000.01,9.514e-05,2]
[399455532,1766369349092,10000.01,9.514e-05,2]
[399455533,1766369406510,-300.0,9.513e-05,2]
[399455534,1766369406540,-300.0,9.513e-05,2]
[399455535,1766369406569,-1200.0,9.513e-05,2]
[399455536,1766369418605,-8048.02331332,9.514e-05,2]
[399455537,1766369418784,-10000.01,9.514e-05,2]
[399455538,1766369418933,-10000.01,9.514e-05,2]
[399455539,1766369419100,-10000.01,9.514e-05,2]
[399455540,1766369419303,-10000.01,9.514e-05,2]
[399455541,1766369430725,-10000.01,9.514e-05,2]
[399455542,1766369430908,-10000.01,9.514e-05,2]
[399455543,1766369431276,-10000.01,9.514e-05,2]
[399455544,1766369431476,-10000.01,9.514e-05,2]
[399455560,1766369431890,-999.0,9.514e-05,2]
[399455561,1766369431945,-4405.0,9.514e-05,2]
[399455562,1766369431956,-4663.61388761,9.514e-05,2]
[399455563,1766369431967,-22410.59272091,9.514e-05,2]
[399455564,1766369432062,-781169.30785016,9.514e-05,2]
[399455565,1766369432072,-1200.0,9.612e-05,2]
[399455566,1766369432082,-197.76729941,9.612e-05,2]
[399455567,1766369432091,-1564.11773627,9.612e-05,2]
[399455568,1766369432101,-150.0,9.613e-05,2]
[399455569,1766369432110,-250.0,9.613e-05,2]
[399455570,1766369432120,-163.6656,9.614e-05,2]
[399455571,1766369432130,-978.3996,9.614e-05,2]
[399455572,1766369432142,-9220.0779,9.614e-05,2]
[399455573,1766369432152,-2500.0,9.614e-05,2]
[399455574,1766369432162,-392.83083662,9.639e-05,2]
[399455576,1766369432172,-1000.0,9.703e-05,2]
[399455578,1766369432184,-2149.72374114,9.713e-05,2]
[399455580,1766369432194,-346.81238402,9.713e-05,2]
[399455582,1766369432204,-418.37165734,9.713e-05,2]
[399455584,1766369432217,-643.69403146,9.713e-05,2]
[399455587,1766369432227,-150.0,9.713e-05,2]
[399455590,1766369432236,-591.13,9.743e-05,2]
[399455593,1766369432245,-356.693,9.746e-05,2]
[399455595,1766369432255,-21750.9048,9.847e-05,2]
[399455598,1766369432265,-1000.0,9.847e-05,2]
[399455602,1766369432276,-500.0,9.92e-05,3]
[399455604,1766369432286,-332.90888782,0.0001,2]
[399455608,1766369432296,-332.90888782,0.0001,2]
[399455611,1766369432307,-332.90888782,0.0001,2]